bitfinex-derivatives/quotes_ETHF0:USTF0_20260209
["timestamp","ask_amount","ask_price","bid_price","bid_amount"]
[1770673469504,0.2382,2100.3,2098.8,0.23837]
[1770673470295,0.2382,2100.3,2098.8,0.24215039]
[1770673470506,4.22607706,2100.2,2098.8,0.24215039]
[1770673470707,5.23558095,2100.2,2098.8,0.24215039]
[1770673470894,5.23558095,2100.2,2098.8,0.00378039]
[1770673470895,0.23824,2100.0,2098.8,0.00378039]
[1770673471095,0.23826,2099.8,2098.8,0.00378039]
[1770673471301,0.23828,2099.6,2098.2,17.234]
[1770673471498,0.23831,2099.4,2097.6,7.01602595]
[1770673471801,0.23831,2099.4,2097.6,17.47251]
[1770673472004,4.2187354,2099.3,2097.6,17.47251]
[1770673472202,0.23831,2099.4,2097.6,17.47251]
[1770673472402,0.23831,2099.4,2097.6,17.47671331]
[1770673476309,0.23825,2099.9,2098.0,0.23846]
[1770673477706,0.23825,2099.9,2098.5,0.23841]
[1770673483314,0.00550278,2100.0,2098.5,0.23841]
[1770673484116,0.00550278,2100.0,2098.9,0.23836]
[1770673488508,0.00550278,2100.0,2098.4,17.47941]
[1770673488914,0.00550278,2100.0,2098.8,0.23837]
[1770673504333,4.23210509,2099.9,2098.8,0.23837]
[1770673504531,0.00550278,2100.0,2098.8,0.23837]
[1770673504727,4.23217126,2099.9,2098.8,0.23837]
[1770673504929,0.00550278,2100.0,2098.8,0.23837]
[1770673505133,4.23217943,2099.9,2098.8,0.23837]
[1770673505339,0.00550278,2100.0,2098.8,0.23837]
[1770673505538,4.23528542,2099.9,2098.8,0.23837]
[1770673505838,0.00550278,2100.0,2098.8,0.23837]
[1770673506038,4.2349985,2099.9,2098.8,0.23837]
[1770673506237,0.00550278,2100.0,2098.8,0.23837]
[1770673506434,4.23646572,2099.9,2098.8,0.23837]
[1770673506630,0.00550278,2100.0,2098.8,0.23837]
[1770673506838,4.23638963,2099.9,2098.8,0.23837]
[1770673507046,0.00550278,2100.0,2098.8,0.23837]
[1770673507335,4.23682691,2099.9,2098.8,0.23837]
[1770673507537,0.00550278,2100.0,2098.8,0.23837]
[1770673507741,0.00550278,2100.0,2099.2,2.72479588]
[1770673508034,2.77829439,2100.7,2099.3,0.23832]
[1770673508934,2.7834502,2100.7,2099.3,0.23832]
[1770673509137,4.23835047,2100.6,2099.3,0.23832]
[1770673509439,4.23835047,2100.5,2099.3,0.23832]
[1770673509637,0.00515581,2100.7,2099.3,0.23832]
[1770673509838,4.23421429,2100.6,2099.3,0.23832]
[1770673510137,4.23421429,2100.5,2099.3,0.23832]
[1770673510342,0.00515581,2100.7,2099.6,2.72479588]
[1770673510642,0.00515581,2100.7,2099.7,0.23827]
[1770673513735,0.00515581,2100.7,2100.0,2.72479588]
[1770673516642,0.00515581,2100.7,2099.7,0.23827]
[1770673516847,0.23809,2101.4,2099.7,0.23827]
[1770673517042,2.77829439,2101.7,2100.1,0.23823]
[1770673517238,4.2213766,2101.6,2100.1,0.23823]
[1770673517438,33.82232439,2101.9,2100.1,0.23823]
[1770673517641,4.22211166,2101.8,2100.1,0.23823]
[1770673517841,4.22211166,2101.7,2100.1,0.23823]
[1770673518650,0.00508853,2101.8,2100.1,0.23823]
[1770673520448,0.00508853,2101.8,2100.5,0.23818]
[1770673520654,0.00508853,2101.8,2100.7,0.23816]
[1770673520841,0.00508853,2101.8,2100.7,0.24400805]
[1770673522360,0.23805,2101.7,2100.7,0.00584805]
[1770673522557,5.53819129,2101.7,2099.9,17.003]
[1770673523559,5.53819129,2101.7,2099.9,17.00675141]
[1770673523753,5.53819129,2101.7,2099.9,17.27711688]
[1770673526361,0.23809,2101.3,2099.9,17.27711688]
[1770673526754,0.23811,2101.1,2099.9,0.00375141]
[1770673526955,0.23814,2100.9,2099.9,0.00375141]
[1770673527162,0.23814,2100.9,2099.2,0.23832]
[1770673527359,0.23816,2100.7,2099.1,6.157]
[1770673527662,4.21485943,2100.8,2098.7,3.57238]
[1770673527663,0.23821,2100.3,2098.7,0.23838]
[1770673527862,0.23823,2100.1,2098.6,16.982]
[1770673528062,0.24194462,2100.1,2098.6,17.25390754]
[1770673528267,0.00371462,2100.1,2099.2,2.72479588]
[1770673529858,0.00371462,2100.1,2099.0,0.23834]
[1770673530861,0.00371462,2100.1,2098.8,2.72479588]
[1770673531065,0.00371462,2100.1,2098.6,17.25390754]
[1770673531569,0.00371462,2100.1,2098.7,0.23839]
[1770673532270,5.27915294,2100.0,2098.6,0.00431432]
[1770673532466,0.23827,2099.7,2098.6,0.00431432]
[1770673532671,0.23827,2099.7,2097.7,10.52733742]
[1770673532672,0.23827,2099.7,2098.0,9.301]
[1770673532871,0.47834606,2099.6,2098.0,9.301]
[1770673533673,0.47834606,2099.6,2098.0,9.30659174]
[1770673534267,0.47834606,2099.6,2098.0,9.58056024]
[1770673535474,0.23829,2099.5,2098.0,9.58056024]
[1770673536372,5.04091294,2099.4,2098.0,9.58056024]
[1770673536773,0.23832,2099.3,2098.0,9.30659174]
[1770673537372,5.04091294,2099.2,2098.0,9.30659174]
[1770673537580,2.72479588,2099.0,2097.5,0.27082152]
[1770673537774,2.72479588,2099.0,2097.2,0.23855]
[1770673537974,5.86306,2099.2,2097.2,0.23855]
[1770673538282,4.98350721,2098.9,2097.2,0.23855]
[1770673538480,0.23836,2098.9,2097.2,0.23855]
[1770673538682,0.23836,2098.9,2097.2,0.24345438]
[1770673538879,0.23836,2098.9,2097.2,2.96825026]
[1770673539071,0.23836,2098.9,2097.2,3.241831]
[1770673539477,2.96310588,2099.4,2097.6,2.96330588]
[1770673539679,0.23831,2099.4,2097.6,2.96330588]
[1770673539982,5.44346716,2099.3,2097.6,2.96330588]
[1770673542187,0.23831,2099.4,2097.6,8.83075588]
[1770673543186,0.23831,2099.4,2097.6,2.96330588]
[1770673543386,0.23833,2099.2,2097.6,0.23851]
[1770673543882,0.47706753,2099.1,2097.6,0.23851]
[1770673544486,0.23828,2099.7,2097.6,2.96330588]
[1770673544781,2.72479588,2099.8,2097.6,2.96330588]
[1770673544782,0.23829,2099.5,2097.6,2.96330588]
[1770673545486,5.38381836,2099.4,2097.6,2.96330588]
[1770673545686,0.23829,2099.5,2097.6,2.96330588]
[1770673546884,0.23829,2099.5,2098.0,0.23846]
[1770673548089,5.35983527,2099.4,2098.0,0.23846]
[1770673551788,0.23832,2099.3,2098.0,0.23846]
[1770673552191,0.23832,2099.3,2097.6,2.96330588]
[1770673554397,0.23834,2099.1,2097.6,2.96330588]
[1770673561296,4.24419829,2099.0,2097.6,2.96330588]
[1770673561502,0.23834,2099.1,2097.6,2.96330588]
[1770673561702,4.24419124,2099.0,2097.6,2.96330588]
[1770673561902,0.23834,2099.1,2097.6,2.96330588]
[1770673562203,4.24399314,2099.0,2097.6,2.96330588]
[1770673562395,0.23834,2099.1,2097.6,2.96330588]
[1770673562597,2.76185818,2099.2,2098.0,2.96324588]
[1770673562598,4.24579245,2099.0,2098.0,2.96324588]
[1770673562799,2.76185818,2099.4,2098.0,2.96324588]
[1770673563108,3.00017818,2099.3,2097.6,9.97933183]
[1770673563300,4.24608007,2099.2,2097.6,9.97933183]
[1770673563499,4.24608007,2099.1,2097.6,9.97933183]
[1770673563699,3.00017818,2099.3,2097.6,9.97933183]
[1770673563899,4.24497319,2099.2,2097.6,9.97933183]
[1770673564102,2.76185818,2099.4,2098.4,2.96320588]
[1770673564406,2.76185818,2099.8,2098.4,2.96320588]
[1770673564703,4.24587163,2099.7,2098.4,2.96320588]
[1770673564904,2.76185818,2099.9,2098.4,0.23841]
[1770673565297,4.24291059,2099.8,2098.8,0.23837]
[1770673565492,2.7655728,2100.1,2098.8,0.24269434]
[1770673565998,4.24731535,2100.1,2098.8,0.24269434]
[1770673566200,4.24360073,2100.0,2098.8,0.24269434]
[1770673568401,0.00371462,2100.1,2098.8,0.24269434]
[1770673568611,4.24014073,2100.0,2098.8,0.24269434]
[1770673568904,0.00371462,2100.1,2098.8,0.24269434]
[1770673570901,2.76185818,2100.8,2099.2,0.23832]
[1770673571100,4.24072307,2100.7,2099.3,16.763]
[1770673571308,2.76185818,2100.9,2099.4,0.23831]
[1770673571804,2.76185818,2101.1,2099.4,0.23831]
[1770673572101,0.00375073,2100.9,2099.4,0.23831]
[1770673572301,10.09122335,2100.8,2098.8,0.24269434]
[1770673572502,2.76185818,2100.5,2098.8,0.24269434]
[1770673572903,5.28764244,2100.4,2098.8,0.24269434]
[1770673573102,4.23268335,2100.3,2098.8,0.24269434]
[1770673573298,5.28764244,2100.4,2098.8,0.24269434]
[1770673573509,4.23096381,2100.3,2098.8,0.24269434]
[1770673573705,0.2382,2100.4,2098.8,0.24269434]
[1770673573898,4.23164411,2100.3,2098.8,0.24269434]
[1770673574108,0.2382,2100.4,2098.8,0.24269434]
[1770673574303,4.23150389,2100.3,2098.8,0.24269434]
[1770673574508,0.2382,2100.4,2098.8,0.24269434]
[1770673576408,4.22938204,2100.3,2098.8,0.24269434]
[1770673576608,0.2382,2100.4,2098.8,0.24269434]
[1770673577402,0.23833,2099.2,2097.3,7.25456595]
[1770673577604,0.23833,2099.2,2097.3,16.94954]
[1770673578005,4.22317917,2099.1,2097.3,16.94954]
[1770673578209,0.23833,2099.2,2097.3,16.94954]
[1770673578410,0.24189955,2099.2,2097.3,16.95533898]
[1770673578611,4.22248583,2099.1,2097.3,16.95533898]
[1770673578811,0.24189955,2099.2,2097.3,16.95533898]
[1770673579106,0.23835,2099.0,2097.3,16.95533898]
[1770673579605,4.96306015,2098.9,2097.3,16.95533898]
[1770673581010,0.23837,2098.8,2097.3,16.95533898]
[1770673581812,0.55619885,2098.7,2097.3,16.71679898]
[1770673582115,0.55619885,2098.7,2097.3,0.00579898]
[1770673583112,6.10459,2098.1,2096.3,0.23866]
[1770673583308,4.21141492,2098.0,2096.3,0.23866]
[1770673583508,4.96306015,2098.0,2096.3,0.23866]
[1770673584320,0.23848,2097.9,2096.3,0.24438011]
[1770673584917,0.23853,2097.5,2096.3,0.00572011]
[1770673585214,0.55619885,2097.4,2096.3,0.00572011]
[1770673585620,0.24436134,2097.5,2096.3,0.00572011]
[1770673586824,5.36812591,2097.4,2096.3,0.00572011]
[1770673587923,0.00583134,2097.5,2096.3,0.00572011]
[1770673588929,0.23853,2097.4,2096.3,0.00572011]
[1770673589128,11.37726609,2097.4,2095.3,0.23877]
[1770673589731,11.37726609,2097.4,2095.3,0.50059341]
[1770673590032,11.37726609,2097.4,2095.3,0.50589888]
[1770673590532,6.10783,2097.0,2095.3,0.00530547]
[1770673590735,0.23863,2096.6,2095.3,0.00530547]
[1770673591225,5.21621366,2096.5,2095.3,0.00530547]
[1770673591623,0.23857,2097.1,2095.4,0.23876]
[1770673592029,4.96869275,2097.0,2095.4,0.23876]
[1770673592734,0.23859,2096.9,2095.4,0.23876]
[1770673593327,4.96869275,2096.8,2095.4,0.23876]
[1770673594441,0.23854,2097.4,2095.4,0.23876]
[1770673594739,5.58635476,2097.4,2095.4,0.23876]
[1770673596235,5.58635476,2097.4,2095.8,0.23871]
[1770673596645,5.58635476,2097.4,2095.3,0.00530547]
[1770673596646,0.23862,2096.7,2095.3,0.00530547]
[1770673596939,0.17144424,2096.6,2095.3,0.00530547]
[1770673597334,0.23864,2096.5,2095.3,0.00530547]
[1770673597538,6.10928,2096.5,2094.7,0.23884]
[1770673597739,0.23866,2096.3,2094.2,6.61689]
[1770673598241,0.23868,2096.1,2094.2,6.61689]
[1770673598442,0.23868,2096.1,2094.2,6.62306881]
[1770673598842,0.17144424,2096.0,2094.2,6.62306881]
[1770673599041,0.17740171,2096.0,2094.2,6.62306881]
[1770673599837,0.17740171,2096.0,2094.2,6.88941912]
[1770673600033,0.23876,2095.5,2094.2,0.00617881]
[1770673600435,5.34781476,2095.4,2094.2,0.00617881]
[1770673601441,0.23877,2095.3,2093.7,0.23895]
[1770673601649,0.23877,2095.3,2093.1,6.40801]
[1770673602146,5.21748655,2095.2,2093.1,6.40801]
[1770673602345,4.71833655,2095.2,2094.4,5.87643]
[1770673602543,0.23858,2097.1,2095.2,0.23878]
[1770673602733,0.23862,2096.7,2094.6,0.23885]
[1770673602938,0.30177245,2096.6,2094.6,0.23885]
[1770673603338,0.30177245,2096.6,2094.6,6.11464]
[1770673603541,0.30527691,2096.6,2095.0,0.2388]
[1770673603745,0.30527691,2096.6,2095.0,6.11354]
[1770673604142,0.00350446,2096.6,2095.0,6.11354]
[1770673604443,0.00350446,2096.6,2095.0,0.2388]
[1770673606645,0.00350446,2096.6,2095.0,6.11346]
[1770673607246,0.00350446,2096.6,2095.4,0.23876]
[1770673607443,3.00033818,2097.9,2095.8,0.23871]
[1770673607644,4.18707927,2097.8,2095.8,0.23871]
[1770673607838,0.30177245,2097.4,2095.8,0.23871]
[1770673608241,0.23848,2097.9,2095.8,6.11119]
[1770673608440,4.19176863,2097.8,2095.8,6.11119]
[1770673608640,0.30177245,2097.8,2095.8,6.11119]
[1770673609141,0.30177245,2097.8,2095.8,0.23871]
[1770673609540,6.16872245,2097.8,2095.8,0.23871]
[1770673609746,13.06369364,2097.7,2095.8,0.23871]
[1770673610046,0.23852,2097.5,2095.8,0.23871]
[1770673610247,0.23852,2097.5,2094.6,0.24460003]
[1770673610248,0.23864,2096.5,2094.6,0.24460003]
[1770673611043,0.30177245,2096.4,2094.6,0.24460003]
[1770673611252,0.00574988,2096.4,2094.6,6.12047003]
[1770673611444,0.00574988,2096.4,2094.7,16.196]
[1770673611748,0.30752233,2096.4,2094.6,0.24460003]
[1770673611941,0.30752233,2096.4,2094.6,9.65060003]
[1770673612142,0.30752233,2096.4,2094.6,0.24460003]
[1770673612849,13.07776265,2096.3,2094.6,0.00575003]
[1770673613052,4.20610447,2096.2,2094.6,0.00575003]
[1770673613646,5.87252,2095.8,2094.6,0.00575003]
[1770673613954,2.76185818,2095.7,2094.0,0.23891]
[1770673614146,4.20610447,2095.6,2094.0,0.23891]
[1770673614449,4.20610447,2095.5,2093.6,6.171]
[1770673614746,0.23875,2095.6,2093.6,6.171]
[1770673614747,4.20610447,2095.4,2093.6,6.17592299]
[1770673614948,0.30177245,2095.4,2093.6,6.17592299]
[1770673616037,0.23877,2095.3,2093.6,6.17592299]
[1770673616847,0.23883,2094.9,2093.6,0.00492299]
[1770673617148,4.20230728,2094.8,2093.6,0.00492299]
[1770673617449,0.30177245,2094.8,2093.6,0.00492299]
[1770673617651,4.43865273,2094.7,2093.0,0.23903]
[1770673617849,0.23884,2094.7,2093.0,0.23903]
[1770673618245,0.30177245,2094.6,2093.0,0.23903]
[1770673618749,0.30177245,2094.6,2093.0,0.24501384]
[1770673619648,0.23886,2094.5,2093.0,0.24501384]
[1770673621243,0.30177245,2094.6,2093.0,0.24501384]
[1770673621450,0.00396989,2094.9,2093.4,0.23898]
[1770673624649,0.00396989,2094.9,2093.4,6.11822]
[1770673624850,0.00396989,2094.9,2093.8,0.23893]
[1770673625049,0.00396989,2094.9,2093.8,16.78893]
[1770673627147,0.00396989,2094.9,2093.3,0.239]
[1770673627351,0.00396989,2094.9,2093.0,0.00598384]
[1770673627352,0.54060245,2094.8,2093.0,0.00598384]
[1770673627750,0.23885,2094.6,2093.0,0.00598384]
[1770673628371,0.30177245,2094.5,2093.0,0.00598384]
[1770673629054,0.23885,2094.6,2093.0,0.00598384]
[1770673629560,0.30177245,2094.5,2093.0,0.00598384]
[1770673631156,0.30177245,2094.5,2093.1,0.23902]
[1770673631356,0.23885,2094.7,2093.1,0.23902]
[1770673633561,0.23889,2094.3,2093.0,0.00598384]
[1770673633762,0.23891,2094.1,2092.1,0.23913]
[1770673633966,0.23891,2094.1,2092.1,0.50121396]
[1770673634168,0.23893,2093.9,2092.1,0.50121396]
[1770673634373,0.23898,2093.5,2091.9,13.992]
[1770673634572,0.23898,2093.5,2091.6,0.23919]
[1770673634573,0.23902,2093.2,2091.6,0.23919]
[1770673634763,0.00502159,2093.2,2091.6,0.24485103]
[1770673634967,0.30177245,2093.1,2091.6,0.24485103]
[1770673635263,0.00502159,2093.2,2091.6,0.5106641]
[1770673635458,0.30177245,2093.1,2091.6,0.5106641]
[1770673636256,0.23903,2093.0,2091.6,0.00566103]
[1770673637772,0.23903,2093.0,2091.6,0.27244212]
[1770673638069,3.04586232,2093.1,2091.6,0.27244212]
[1770673638263,0.00502159,2093.2,2091.8,0.23917]
[1770673642273,0.00502159,2093.2,2091.8,6.1229]
[1770673643276,0.00502159,2093.2,2092.2,0.23912]
[1770673643774,0.23891,2094.1,2092.6,0.23907]
[1770673644167,2.76185818,2094.5,2092.6,0.23907]
[1770673644370,4.20688308,2094.4,2092.6,0.23907]
[1770673644569,0.30177245,2094.2,2092.6,0.23907]
[1770673644771,0.30785773,2094.2,2092.6,0.23907]
[1770673645275,0.00608528,2094.2,2093.0,0.23903]
[1770673646871,0.00608528,2094.2,2093.2,0.23901]
[1770673647177,2.98288987,2095.1,2093.2,0.23901]
[1770673647475,4.51416976,2095.0,2093.2,0.23901]
[1770673647678,4.21239731,2094.9,2093.2,0.23901]
[1770673647867,0.30177245,2095.0,2093.2,0.23901]
[1770673648064,0.23882,2094.9,2093.2,0.24362316]
[1770673651772,0.3060631,2095.0,2093.6,0.23896]
[1770673651977,0.00429065,2095.0,2093.6,0.23896]
[1770673653478,0.00429065,2095.0,2093.6,8.86159987]
[1770673653886,0.00429065,2095.0,2093.6,0.23896]
[1770673654389,0.00429065,2095.0,2094.0,0.23891]
[1770673655685,2.98279987,2095.9,2094.0,0.23891]
[1770673655884,4.21285333,2095.8,2094.0,0.23891]
[1770673656075,0.30177245,2095.8,2094.0,0.23891]
[1770673656787,0.30556318,2095.8,2094.0,0.23891]
[1770673658991,0.30556318,2095.8,2094.4,0.23887]
[1770673659294,0.00379073,2095.8,2094.4,0.23887]
[1770673659491,0.00379073,2095.8,2094.6,0.23885]
[1770673659690,45.96295258,2096.7,2094.6,0.23885]
[1770673659691,5.74454805,2096.9,2095.0,0.2388]
[1770673659997,0.30177245,2096.6,2095.0,0.2388]
[1770673660791,0.30735623,2096.6,2095.0,0.24372716]
[1770673661197,0.30735623,2096.6,2095.4,0.23876]
[1770673661495,0.00558378,2096.6,2095.4,0.23876]
[1770673664102,0.00558378,2096.6,2095.4,0.50457743]
[1770673677112,0.23864,2096.5,2095.4,0.26581743]
[1770673677414,0.54041245,2096.5,2095.0,0.24372716]
[1770673679408,0.00558378,2096.6,2095.7,0.23872]
[1770673679811,0.23853,2097.5,2095.7,0.23872]
[1770673680001,0.23854,2097.3,2095.7,0.23872]
[1770673680809,0.24413242,2097.3,2095.7,0.23872]
[1770673681212,0.00559242,2097.3,2095.7,0.23872]
[1770673681412,0.00559242,2097.3,2095.8,16.171]
[1770673682202,0.00559242,2097.3,2095.9,0.2387]
[1770673686516,0.00559242,2097.3,2096.3,0.23865]
[1770673686814,0.3193982,2098.8,2097.4,0.23853]
[1770673687017,0.3193982,2098.8,2097.0,2.74408987]
[1770673687018,5.54550072,2099.3,2097.3,0.23853]
[1770673687208,0.30177245,2098.7,2097.5,16.203]
[1770673687411,6.10078,2099.4,2097.5,16.203]
[1770673687608,6.10134,2099.2,2097.5,16.203]
[1770673687814,4.4497778,2099.1,2097.5,16.20756874]
[1770673688014,0.30177245,2099.1,2097.5,16.20756874]
[1770673688621,0.00417853,2099.2,2097.5,16.20756874]
[1770673688921,0.00417853,2099.2,2097.8,6.10534]
[1770673689627,0.08292971,2100.3,2098.3,6.10377]
[1770673689924,0.23817,2100.6,2098.4,19.00247216]
[1770673690123,4.13846069,2100.5,2098.4,19.00247216]
[1770673690323,0.23817,2100.6,2098.4,16.275]
[1770673690324,0.30177245,2100.3,2098.4,16.275]
[1770673690725,0.30784852,2100.3,2098.4,16.275]
[1770673691322,0.30784852,2100.3,2098.3,0.23843]
[1770673691528,0.30784852,2100.3,2098.5,16.364]
[1770673692417,8.82590216,2100.2,2097.6,6.10583]
[1770673692625,8.82590216,2100.2,2097.7,12.547]
[1770673692921,2.96569216,2100.2,2097.8,6.1054]
[1770673693128,0.30177245,2100.1,2097.8,6.1054]
[1770673697128,0.30177245,2100.1,2098.2,6.10412]
[1770673697325,0.00607607,2100.3,2098.5,6.10334]
[1770673697526,0.00607607,2100.3,2098.6,16.372]
[1770673697726,0.30177245,2100.2,2098.6,16.372]
[1770673698532,0.30177245,2100.2,2098.6,22.23661]
[1770673698833,0.00607607,2100.3,2098.8,6.10246]
[1770673699932,0.00607607,2100.3,2098.8,6.37651985]
[1770673701028,0.00607607,2100.3,2098.8,0.51242985]
[1770673704239,2.44144267,2100.2,2098.8,0.51242985]
[1770673704735,0.00607607,2100.3,2098.8,0.51242985]
[1770673705127,0.00607607,2100.3,2098.8,6.37647985]
[1770673705930,0.00607607,2100.3,2099.2,0.23832]
[1770673706125,0.00607607,2100.3,2099.2,0.24229426]
[1770673713634,0.00607607,2100.3,2099.6,0.23828]
[1770673713830,0.23808,2101.4,2099.6,0.23828]
[1770673714236,4.43811543,2101.3,2099.6,0.23828]
[1770673714436,0.23808,2101.4,2099.6,0.23828]
[1770673714638,4.13643033,2101.3,2099.6,0.23828]
[1770673714836,0.30618641,2101.3,2099.6,0.23828]
[1770673715339,4.14637616,2101.2,2099.6,0.23828]
[1770673715537,0.30618641,2101.3,2099.6,0.23828]
[1770673715737,4.14638391,2101.2,2099.6,0.23828]
[1770673715937,0.00441396,2101.3,2099.6,0.23828]
[1770673716139,4.14697308,2101.2,2099.6,0.23828]
[1770673716441,4.15871031,2101.1,2099.6,0.23828]
[1770673716642,4.15871031,2101.0,2099.6,0.23828]
[1770673716845,41.69218775,2101.3,2099.6,0.23828]
[1770673717141,4.15978479,2101.2,2099.6,0.23828]
[1770673717442,4.15978479,2101.1,2099.6,0.23828]
[1770673717636,4.15978479,2101.0,2099.6,0.23828]
[1770673717841,41.69218775,2101.3,2099.6,0.23828]
[1770673718042,2.44144267,2100.8,2099.6,0.23828]
[1770673718431,41.68777379,2101.2,2099.6,0.23828]
[1770673719439,45.85414319,2101.2,2099.6,0.23828]
[1770673719643,4.1663694,2101.1,2099.6,0.23828]
[1770673719840,4.1663694,2101.0,2099.6,0.23828]
[1770673720040,41.92591379,2100.9,2099.2,0.00397426]
[1770673720242,4.1663694,2100.8,2099.3,0.23832]
[1770673720441,4.46814185,2100.8,2099.3,0.23832]
[1770673720648,4.1663694,2100.7,2099.3,0.23832]
[1770673721044,4.46814185,2100.6,2099.3,0.23832]
[1770673721243,0.30177245,2100.6,2099.3,0.23832]
[1770673721845,41.92591379,2100.9,2099.3,0.23832]
[1770673722047,4.16508012,2100.8,2099.3,0.23832]
[1770673722238,4.16508012,2100.7,2099.3,0.23832]
[1770673722442,4.16508012,2100.6,2099.3,0.23832]
[1770673723043,0.30177245,2100.5,2099.3,0.23832]
[1770673723649,41.92591379,2100.9,2099.3,0.23832]
[1770673723844,41.92591379,2100.9,2099.4,0.80436922]
[1770673723845,0.60470241,2100.7,2099.4,0.80436922]
[1770673724047,0.59875367,2100.5,2099.4,0.80436922]
[1770673724845,0.59875367,2100.5,2099.2,16.27897426]
[1770673724846,0.59875367,2100.8,2099.6,0.80436922]
[1770673725046,0.59371263,2100.6,2099.6,0.80436922]
[1770673727244,4.17570281,2100.5,2099.6,0.80436922]
[1770673727441,0.58242694,2100.3,2099.3,0.80436922]
[1770673727642,0.58242694,2100.1,2099.3,0.80436922]
[1770673728948,0.58700336,2099.9,2099.3,0.80436922]
[1770673731349,0.58700336,2099.9,2099.2,0.78472525]
[1770673731652,0.58209119,2099.7,2098.9,0.78075099]
[1770673731852,0.58209119,2099.5,2098.9,0.78075099]
[1770673732555,0.5866968,2099.5,2098.9,0.78630873]
[1770673732750,2.44144267,2099.1,2098.9,0.78630873]
[1770673733050,2.44144267,2099.1,2098.6,0.78075099]
[1770673733845,2.44144267,2099.1,2098.7,0.78075099]
[1770673734252,0.7187425,2099.5,2098.7,0.78075099]
[1770673734458,0.80769529,2099.9,2098.7,0.78075099]
[1770673735455,0.81151999,2099.9,2098.7,0.78075099]
[1770673739370,0.81921642,2099.7,2098.7,0.78075099]
[1770673741979,0.81921642,2099.7,2098.9,0.32267682]
[1770673743768,0.81921642,2099.7,2098.6,0.00547356]
[1770673743769,0.81921642,2099.7,2098.6,0.29608429]
[1770673743976,0.81921642,2099.7,2098.8,0.33264068]
[1770673751372,0.81921642,2099.7,2098.6,0.00547356]
[1770673751373,0.62005272,2099.6,2099.2,0.55653958]
[1770673751576,0.93795706,2099.9,2099.2,0.55653958]
[1770673755578,0.78583966,2100.0,2099.2,0.55653958]
[1770673755779,0.87263431,2100.2,2099.4,0.78075099]
[1770673755980,0.87263431,2100.2,2099.6,0.78075099]
[1770673756481,0.87614385,2100.2,2099.6,0.78075099]
[1770673756983,0.00350954,2100.2,2099.6,0.78075099]
[1770673758081,0.88426149,2100.2,2099.6,0.78075099]
[1770673764688,0.00350954,2100.2,2099.6,0.78075099]
[1770673768791,1.69419224,2100.4,2099.2,7.10796018]
[1770673768992,1.45600224,2100.0,2098.7,1.32142339]
[1770673769592,1.46102838,2100.0,2098.7,1.32142339]
[1770673770894,1.46102838,2100.0,2098.6,0.00547356]
[1770673770895,1.45600224,2099.8,2098.6,0.00547356]
[1770673771295,1.45600224,2099.6,2098.6,0.00547356]
[1770673773899,1.45600224,2099.6,2098.6,1.32689695]
[1770673784597,1.45600224,2099.6,2098.6,0.00547356]
[1770673785103,1.45600224,2099.6,2098.6,1.32689695]
[1770673796202,1.45600224,2099.6,2098.6,0.00547356]
[1770673796504,1.86041962,2099.4,2098.6,1.98412993]
[1770673800098,1.86041962,2099.4,2098.8,1.97865637]
[1770673800304,1.86041962,2099.5,2099.0,1.97865637]
[1770673801710,1.86041962,2099.9,2099.1,1.81645742]
[1770673801909,1.86041962,2099.7,2099.0,1.97865637]
[1770673804615,1.86041962,2099.7,2098.7,1.97865637]
[1770673809414,1.86041962,2099.9,2098.7,1.97865637]
[1770673809617,1.86544576,2100.0,2098.9,1.97865637]
[1770673809816,1.86544576,2100.0,2099.1,1.97865637]
[1770673810514,1.86544576,2100.0,2099.0,16.366]
[1770673810515,1.86544576,2100.0,2099.3,1.97865637]
[1770673810716,0.00502614,2100.0,2099.3,1.97865637]
[1770673811018,1.86544576,2100.0,2099.3,1.97865637]
[1770673815917,0.00502614,2100.0,2099.5,1.97865637]
[1770673816123,1.86041962,2100.7,2099.7,1.97865637]
[1770673816315,1.86041962,2100.7,2099.9,1.97865637]
[1770673816723,1.86041962,2100.6,2099.9,1.97865637]
[1770673817124,1.86425393,2100.6,2099.9,1.97865637]
[1770673818220,1.86425393,2100.6,2100.1,1.97865637]
[1770673818424,1.86425393,2100.6,2100.1,1.98463633]
[1770673818725,1.86041962,2100.4,2100.1,1.98463633]
[1770673818926,3.48255166,2100.5,2100.1,1.98463633]
[1770673819319,1.86425393,2100.6,2100.1,1.98463633]
[1770673820423,1.86425393,2100.6,2100.1,0.00597996]
[1770673820624,1.86425393,2100.6,2100.0,16.477]
[1770673820820,1.86425393,2100.6,2100.0,18.91044892]
[1770673821125,1.86425393,2100.6,2100.1,2.43344892]
[1770673821524,1.86425393,2100.6,2100.1,2.43716209]
[1770673822632,2.37014439,2100.8,2100.1,2.43716209]
[1770673823631,0.0053814,2100.8,2100.2,17.58063]
[1770673823823,2.37014439,2103.3,2102.1,2.43344892]
[1770673824018,2.37014439,2103.3,2102.3,2.43344892]
[1770673824220,2.37014439,2103.2,2102.0,2.43344892]
[1770673824424,2.37014439,2103.2,2102.1,2.43344892]
[1770673824624,2.37014439,2103.5,2102.1,2.69481892]
[1770673824826,2.37014439,2103.4,2102.3,2.43344892]
[1770673825330,0.00371105,2103.5,2102.3,2.43344892]
[1770673825530,2.37385544,2103.5,2102.3,2.43344892]
[1770673826034,1.59219242,2103.4,2102.3,2.43344892]
[1770673826224,1.59590347,2103.5,2102.3,2.43344892]
[1770673826530,1.59219242,2103.2,2102.3,2.43344892]
[1770673826923,1.59219242,2103.2,2102.3,11.64244892]
[1770673827125,0.78755549,2102.8,2102.3,11.64244892]
[1770673827320,0.78755549,2103.6,2102.4,2.43344892]
[1770673828131,3.58602148,2103.6,2102.4,2.43344892]
[1770673828432,0.02048318,2103.5,2102.4,2.43344892]
[1770673831027,6.08425,2105.1,2103.2,2.43344892]
[1770673831334,0.30177245,2104.8,2103.4,2.43344892]
[1770673831523,0.30177245,2104.8,2103.1,0.23788]
[1770673831524,0.30177245,2104.8,2103.5,2.43344892]
[1770673831727,2.79846599,2104.5,2103.5,2.43344892]
[1770673831926,2.8040209,2104.5,2103.5,2.43344892]
[1770673832233,2.79846599,2104.1,2103.5,2.43344892]
[1770673832629,2.79846599,2104.0,2103.5,2.43344892]
[1770673832830,0.00555491,2104.5,2103.5,2.43344892]
[1770673833232,2.79846599,2104.3,2103.5,2.43344892]
[1770673833929,0.00555491,2104.5,2103.5,2.43344892]
[1770673834333,0.00555491,2104.5,2103.1,0.23788]
[1770673834334,0.00555491,2104.5,2103.7,2.43344892]
[1770673834533,0.00555491,2104.5,2103.7,2.43880313]
[1770673834733,2.79846599,2104.1,2103.7,2.43880313]